[Event "51st La Roda Open 2025"]
[Site "La Roda"]
[Date "2025.04.15"]
[Round "1.17"]
[White "Nomindalai Tumurbaatar"]
[Black "Sahuquillo Chueco, Francisco"]
[Result "1-0"]
[Annotator "RC"]
[ECO "E67"]
[WhiteElo "2211"]
[BlackElo "1835"]
[PlyCount "95"]
[EventDate "2025.04.15"]
[EventType "swiss"]
[EventCountry "ESP"]
[SourceTitle "playchess.com"]
[Source "ChessBase"]
[SourceQuality "1"]
[TimeControl "5400+30"]

1. d4 {[%emt 0:00:03]} Nf6 {[%emt 0:00:14]} 2. c4 {[%emt 0:00:09]} d6 {[%emt 0:00:20]} 3. Nf3 {[%emt 0:01:02]} g6 {[%emt 0:00:49]} 4. Nc3 {[%emt 0:00:18]} Bg7 {[%emt 0:01:20]} 5. g3 {[%emt 0:00:22]} Nbd7 {[%emt 0:00:21]} 6. Bg2 {[%emt 0:00:10]} O-O {[%emt 0:00:12]} 7. O-O {[%emt 0:00:21]} e5 {[%emt 0:02:17]} 8. dxe5 {[%emt 0:00:40]} dxe5 {[%emt 0:01:26]} 9. h3 {[%emt 0:00:14]} c6 {[%emt 0:00:39]} 10. Be3 {[%emt 0:00:28]} Qc7 {[%emt 0:01:44]} 11. Qb3 {[%emt 0:01:30]} Re8 {[%emt 0:03:56]} 12. Rfd1 {[%emt 0:01:49]} Bf8 {[%emt 0:01:08]} 13. Nd2 {[%emt 0:10:32]} Kg7 {[%emt 0:04:25]} 14. Na4 {[%emt 0:04:36]} Qa5 {[%emt 0:08:50]} 15. a3 {[%emt 0:03:16]} Nc5 {[%emt 0:01:31]} 16. Nxc5 {[%emt 0:00:06]} Bxc5 {[%emt 0:00:09]} 17. Bg5 {[%emt 0:00:28]} Ng8 {[%emt 0:10:24]} 18. Ne4 {[%emt 0:04:26]} f6 {[%emt 0:04:27]} 19. Bd2 {[%emt 0:01:50]} Qb6 {[%emt 0:00:51]} 20. Nxc5 {[%emt 0:00:07]} Qxc5 {[%emt 0:00:41]} 21. Be3 {[%emt 0:00:13]} Qe7 {[%emt 0:01:15]} 22. Rd2 {[%emt 0:00:46]} Be6 {[%emt 0:00:34]} 23. Rad1 {[%emt 0:01:59]} Nh6 {[%emt 0:01:09]} 24. Bxh6+ {[%emt 0:09:40]} Kxh6 {[%emt 0:00:10]} 25. Rd6 {[%emt 0:01:19]} Qf7 {[%emt 0:03:58]} 26. Qe3+ {[%emt 0:01:36]} Kg7 {[%emt 0:00:20]} 27. c5 {[%emt 0:00:06]} Re7 {[%emt 0:01:55]} 28. g4 {[%emt 0:00:26]} Bb3 {[%emt 0:07:19]} 29. R1d2 {[%emt 0:03:34]} a5 {[%emt 0:11:30]} 30. h4 {[%emt 0:01:53]} a4 {[%emt 0:12:28]} 31. g5 {[%emt 0:01:38]} f5 {[%emt 0:00:53]} 32. h5 {[%emt 0:00:17]} f4 {[%emt 0:06:38]} 33. Qd3 {[%emt 0:17:34]} Qf5 {[%emt 0:04:59]} 34. Qxf5 {[%emt 0:12:07]} gxf5 {[%emt 0:00:04]} 35. Rf6 {[%emt 0:00:06]} Rf8 {[%emt 0:02:08]} 36. h6+ {[%emt 0:01:23]} Kg8 {[%emt 0:00:43]} 37. Bh3 {[%emt 0:00:11]} Be6 {[%emt 0:01:07]} 38. e4 {[%emt 0:08:40]} Rxf6 {[%emt 0:01:01]} 39. gxf6 {[%emt 0:00:07]} Rd7 {[%emt 0:00:33]} 40. Rd6 {[%emt 0:03:13]} Rxd6 {[%emt 0:01:09]} 41. cxd6 {[%emt 0:00:05]} Kf7 {[%emt 0:00:30]} 42. Bxf5 {[%emt 0:05:39]} Bxf5 {[%emt 0:01:06]} 43. exf5 {[%emt 0:00:03]} Kxf6 {[%emt 0:00:07]} 44. Kg2 {[%emt 0:00:20]} e4 {[%emt 0:00:21]} 45. Kh3 {[%emt 0:00:09]} b5 {[%emt 0:00:59]} 46. Kg4 {[%emt 0:00:05]} f3 {[%emt 0:00:15]} 47. Kf4 {[%emt 0:00:05]} c5 {[%emt 0:00:05]} 48. Kxe4 {[%emt 0:00:05]} 1-0

[Event "51st La Roda Open 2025"]
[Site "La Roda"]
[Date "2025.04.15"]
[Round "1.18"]
[White "Leiva Raya, Nicolas"]
[Black "Cuellar Montes, Alejandro"]
[Result "0-1"]
[Annotator "RC"]
[ECO "D02"]
[WhiteElo "1831"]
[BlackElo "2200"]
[PlyCount "148"]
[EventDate "2025.04.15"]
[EventType "swiss"]
[EventCountry "ESP"]
[SourceTitle "playchess.com"]
[Source "ChessBase"]
[SourceQuality "1"]
[TimeControl "5400+30"]

1. d4 {[%emt 0:00:08]} Nf6 {[%emt 0:00:05]} 2. Bf4 {[%emt 0:00:10]} d5 {[%emt 0:00:20]} 3. e3 {[%emt 0:00:19]} e6 {[%emt 0:00:07]} 4. Nd2 {[%emt 0:00:30]} Bd6 {[%emt 0:00:15]} 5. Bg3 {[%emt 0:00:53]} O-O {[%emt 0:00:47]} 6. Bd3 {[%emt 0:00:45]} c5 {[%emt 0:00:37]} 7. c3 {[%emt 0:00:09]} Qc7 {[%emt 0:00:24]} 8. Ngf3 {[%emt 0:05:28]} Nbd7 {[%emt 0:00:48]} 9. Rc1 {[%emt 0:03:55]} Bxg3 {[%emt 0:06:52]} 10. hxg3 {[%emt 0:00:05]} e5 {[%emt 0:00:17]} 11. dxe5 {[%emt 0:01:03]} Nxe5 {[%emt 0:00:07]} 12. Nxe5 {[%emt 0:09:34]} Qxe5 {[%emt 0:00:37]} 13. Nf3 {[%emt 0:04:12]} Qe7 {[%emt 0:02:25]} 14. Qa4 {[%emt 0:06:18]} h6 {[%emt 0:09:11]} 15. Qf4 {[%emt 0:02:35]} Re8 {[%emt 0:03:22]} 16. Bb5 {[%emt 0:12:23]} Bd7 {[%emt 0:02:31]} 17. Bxd7 {[%emt 0:00:27]} Qxd7 {[%emt 0:00:12]} 18. Nd2 {[%emt 0:16:35]} d4 {[%emt 0:02:01]} 19. cxd4 {[%emt 0:01:20]} cxd4 {[%emt 0:00:22]} 20. e4 {[%emt 0:02:00]} Qb5 {[%emt 0:03:53]} 21. b3 {[%emt 0:02:03]} Rac8 {[%emt 0:02:27]} 22. Rc4 {[%emt 0:03:38]} Rxc4 {[%emt 0:30:00]} 23. bxc4 {[%emt 0:00:07]} Qc6 {[%emt 0:00:10]} 24. O-O {[%emt 0:01:46]} Nxe4 {[%emt 0:00:42]} 25. Nxe4 {[%emt 0:04:51]} Rxe4 {[%emt 0:00:08]} 26. Qb8+ {[%emt 0:00:24]} Kh7 {[%emt 0:00:01]} 27. Qxa7 {[%emt 0:00:43]} d3 {[%emt 0:00:29]} 28. f3 {[%emt 0:02:46]} Rxc4 {[%emt 0:01:02]} 29. Qe3 {[%emt 0:00:15]} Qd5 {[%emt 0:04:49]} 30. Rd1 {[%emt 0:00:49]} Rc3 {[%emt 0:00:43]} 31. Rd2 {[%emt 0:01:47]} Ra3 {[%emt 0:02:12]} 32. Qe4+ {[%emt 0:01:33]} Qxe4 {[%emt 0:00:18]} 33. fxe4 {[%emt 0:00:04]} Kg6 {[%emt 0:00:15]} 34. Kf2 {[%emt 0:00:06]} Kf6 {[%emt 0:00:47]} 35. Rb2 {[%emt 0:02:31]} Ke5 {[%emt 0:01:19]} 36. Ke3 {[%emt 0:00:24]} d2+ {[%emt 0:00:13]} 37. Kxd2 {[%emt 0:00:06]} Rxg3 {[%emt 0:00:14]} 38. Rxb7 {[%emt 0:00:09]} Rxg2+ {[%emt 0:00:26]} 39. Ke3 {[%emt 0:00:06]} Rxa2 {[%emt 0:00:43]} 40. Rxf7 {[%emt 0:00:10]} Ra3+ {[%emt 0:00:14]} 41. Kf2 {[%emt 0:00:09]} g5 {[%emt 0:07:04]} 42. Re7+ {[%emt 0:00:52]} Kf4 {[%emt 0:01:17]} 43. e5 {[%emt 0:02:17]} Ra2+ {[%emt 0:00:07]} 44. Kf1 {[%emt 0:00:08]} Ra6 {[%emt 0:02:06]} 45. Re8 {[%emt 0:03:22]} Kf5 {[%emt 0:00:34]} 46. Kg2 {[%emt 0:00:34]} Re6 {[%emt 0:00:13]} 47. Rh8 {[%emt 0:00:23]} Kxe5 {[%emt 0:00:08]} 48. Kg3 {[%emt 0:00:08]} Kf5 {[%emt 0:00:05]} 49. Rf8+ {[%emt 0:00:19]} Rf6 {[%emt 0:00:34]} 50. Ra8 {[%emt 0:00:09]} h5 {[%emt 0:00:13]} 51. Ra5+ {[%emt 0:00:25]} Kg6 {[%emt 0:00:06]} 52. Ra4 {[%emt 0:00:26]} Rb6 {[%emt 0:00:13]} 53. Ra3 {[%emt 0:00:12]} h4+ {[%emt 0:00:14]} 54. Kg4 {[%emt 0:00:20]} Rb4+ {[%emt 0:00:04]} 55. Kh3 {[%emt 0:00:12]} Kh5 {[%emt 0:00:08]} 56. Ra5 {[%emt 0:00:12]} Rb3+ {[%emt 0:00:05]} 57. Kg2 {[%emt 0:00:07]} h3+ {[%emt 0:00:21]} 58. Kh2 {[%emt 0:00:08]} Kh4 {[%emt 0:00:06]} 59. Ra8 {[%emt 0:00:43]} Rb2+ {[%emt 0:00:07]} 60. Kh1 {[%emt 0:00:07]} g4 {[%emt 0:00:25]} 61. Ra4 {[%emt 0:00:17]} Rf2 {[%emt 0:00:56]} 62. Kg1 {[%emt 0:00:36]} Rf3 {[%emt 0:00:36]} 63. Kh2 {[%emt 0:00:10]} Rf2+ {[%emt 0:01:42]} 64. Kg1 {[%emt 0:00:09]} Re2 {[%emt 0:00:06]} 65. Rb4 {[%emt 0:01:32]} Kg3 {[%emt 0:00:23]} 66. Rb1 {[%emt 0:01:51]} Re4 {[%emt 0:00:47]} 67. Rb3+ {[%emt 0:00:23]} Kf4 {[%emt 0:00:44]} 68. Kh2 {[%emt 0:00:45]} Re2+ {[%emt 0:00:05]} 69. Kg1 {[%emt 0:00:05]} g3 {[%emt 0:00:05]} 70. Rb1 {[%emt 0:00:52]} Re4 {[%emt 0:02:24]} 71. Rf1+ {[%emt 0:00:16]} Kg4 {[%emt 0:00:05]} 72. Rb1 {[%emt 0:00:06]} h2+ {[%emt 0:00:29]} 73. Kg2 {[%emt 0:00:37]} Re2+ {[%emt 0:00:05]} 74. Kh1 {[%emt 0:00:09]} Kh3 {[%emt 0:00:11]} 0-1

[Event "51st La Roda Open 2025"]
[Site "La Roda"]
[Date "2025.04.17"]
[Round "4.1"]
[White "Valmana Canto, Jaime"]
[Black "Pranav Vijay"]
[Result "1/2-1/2"]
[Annotator "RC"]
[ECO "C68"]
[WhiteElo "2385"]
[BlackElo "2252"]
[PlyCount "145"]
[EventDate "2025.04.15"]
[EventType "swiss"]
[EventCountry "ESP"]
[SourceTitle "playchess.com"]
[Source "ChessBase"]
[SourceQuality "1"]
[TimeControl "5400+30"]

1. e4 {[%emt 0:07:41]} e5 {[%emt 0:00:05]} 2. Nf3 {[%emt 0:00:22]} Nc6 {[%emt 0:00:08]} 3. Bb5 {[%emt 0:00:30]} a6 {[%emt 0:00:08]} 4. Bxc6 {[%emt 0:00:08]} dxc6 {[%emt 0:00:05]} 5. O-O {[%emt 0:00:07]} Qf6 {[%emt 0:00:06]} 6. d4 {[%emt 0:00:21]} exd4 {[%emt 0:00:06]} 7. Bg5 {[%emt 0:00:07]} Qd6 {[%emt 0:00:07]} 8. Nxd4 {[%emt 0:00:09]} Be7 {[%emt 0:00:11]} 9. Bxe7 {[%emt 0:00:58]} Nxe7 {[%emt 0:00:06]} 10. Nc3 {[%emt 0:12:41]} Bd7 {[%emt 0:00:07]} 11. Nb3 {[%emt 0:00:25]} O-O-O {[%emt 0:00:09]} 12. Qe2 {[%emt 0:06:44]} Ng6 {[%emt 0:00:19]} 13. f4 {[%emt 0:00:32]} Kb8 {[%emt 0:07:44]} 14. Rad1 {[%emt 0:11:18]} Qe7 {[%emt 0:00:22]} 15. Qf2 {[%emt 0:08:04]} Bc8 {[%emt 0:05:52]} 16. Nc5 {[%emt 0:09:05]} f6 {[%emt 0:18:12]} 17. Nd3 {[%emt 0:05:28]} Rhe8 {[%emt 0:05:58]} 18. Rde1 {[%emt 0:01:16]} Nf8 {[%emt 0:04:11]} 19. f5 {[%emt 0:11:53]} Nd7 {[%emt 0:00:17]} 20. Qg3 {[%emt 0:00:02]} Qf8 {[%emt 0:08:18]} 21. Nd1 {[%emt 0:12:47]} Ne5 {[%emt 0:05:15]} 22. N1f2 {[%emt 0:00:25]} Nc4 {[%emt 0:00:44]} 23. Kh1 {[%emt 0:02:57]} Re7 {[%emt 0:00:59]} 24. Qf4 {[%emt 0:01:55]} Rde8 {[%emt 0:02:11]} 25. Re2 {[%emt 0:01:43]} g6 {[%emt 0:04:56]} 26. b3 {[%emt 0:02:03]} Nd6 {[%emt 0:02:30]} 27. fxg6 {[%emt 0:00:56]} hxg6 {[%emt 0:00:02]} 28. Ng4 {[%emt 0:01:22]} g5 {[%emt 0:00:28]} 29. Qf3 {[%emt 0:00:30]} Bxg4 {[%emt 0:02:50]} 30. Qxg4 {[%emt 0:00:09]} Nxe4 {[%emt 0:00:10]} 31. Kg1 {[%emt 0:01:35]} Nc3 {[%emt 0:00:49]} 32. Ref2 {[%emt 0:00:30]} Re4 {[%emt 0:00:44]} 33. Qxg5 {[%emt 0:00:52]} Ne2+ {[%emt 0:01:25]} 34. Kh1 {[%emt 0:00:10]} Qh8 {[%emt 0:00:03]} 35. Qxf6 {[%emt 0:00:45]} Ng3+ {[%emt 0:14:23]} 36. Kg1 {[%emt 0:00:02]} Nxf1 {[%emt 0:00:06]} 37. Qxh8 {[%emt 0:00:02]} Rxh8 {[%emt 0:00:05]} 38. Rxf1 {[%emt 0:00:05]} a5 {[%emt 0:00:16]} 39. Rf4 {[%emt 0:02:45]} Re2 {[%emt 0:01:18]} 40. Rf2 {[%emt 0:00:01]} Re3 {[%emt 0:01:02]} 41. g3 {[%emt 0:00:29]} b6 {[%emt 0:00:47]} 42. Kg2 {[%emt 0:00:48]} c5 {[%emt 0:00:11]} 43. h4 {[%emt 0:00:43]} Kb7 {[%emt 0:02:00]} 44. Rf3 {[%emt 0:00:05]} Re4 {[%emt 0:00:01]} 45. Rf4 {[%emt 0:00:05]} Re2+ {[%emt 0:00:26]} 46. Rf2 {[%emt 0:00:01]} Re7 {[%emt 0:02:04]} 47. Nf4 {[%emt 0:00:18]} Rg8 {[%emt 0:08:39]} 48. h5 {[%emt 0:00:18]} Re5 {[%emt 0:00:12]} 49. Kf3 {[%emt 0:01:15]} Reg5 {[%emt 0:01:51]} 50. Rg2 {[%emt 0:00:09]} c4 {[%emt 0:01:51]} 51. g4 {[%emt 0:00:03]} cxb3 {[%emt 0:00:04]} 52. cxb3 {[%emt 0:00:04]} Kc6 {[%emt 0:02:05]} 53. Ng6 {[%emt 0:00:09]} Kd6 {[%emt 0:02:17]} 54. Kf4 {[%emt 0:00:02]} Rd5 {[%emt 0:00:19]} 55. g5 {[%emt 0:01:27]} Rd1 {[%emt 0:00:59]} 56. Kf5 {[%emt 0:02:23]} Rf1+ {[%emt 0:01:19]} 57. Kg4 {[%emt 0:00:03]} Rd1 {[%emt 0:00:30]} 58. Rf2 {[%emt 0:01:04]} b5 {[%emt 0:00:36]} 59. Kf5 {[%emt 0:00:08]} Re8 {[%emt 0:00:29]} 60. h6 {[%emt 0:00:48]} Rd5+ {[%emt 0:00:30]} 61. Kf6 {[%emt 0:00:29]} Re6+ {[%emt 0:00:25]} 62. Kf7 {[%emt 0:00:01]} Rxg5 {[%emt 0:00:16]} 63. h7 {[%emt 0:00:07]} Rh5 {[%emt 0:00:17]} 64. Rd2+ {[%emt 0:00:06]} Kc6 {[%emt 0:00:46]} 65. Kxe6 {[%emt 0:01:15]} Rxh7 {[%emt 0:00:01]} 66. Rc2+ {[%emt 0:00:25]} Kb6 {[%emt 0:00:10]} 67. Ne5 {[%emt 0:01:16]} Rh6+ {[%emt 0:00:07]} 68. Ke7 {[%emt 0:00:27]} Rh7+ {[%emt 0:00:29]} 69. Ke6 {[%emt 0:00:32]} Rh6+ {[%emt 0:00:02]} 70. Ke7 {[%emt 0:00:23]} Rh7+ {[%emt 0:00:01]} 71. Nf7 {[%emt 0:00:22]} Rh4 {[%emt 0:02:03]} 72. Ke6 {[%emt 0:00:46]} a4 {[%emt 0:01:10]} 73. Ne5 {[%emt 0:00:22]} 1/2-1/2

[Event "51st La Roda Open 2025"]
[Site "La Roda"]
[Date "2025.04.17"]
[Round "4.2"]
[White "Yordanov, Lachezar"]
[Black "Albornoz Cabrera, Carlos Daniel"]
[Result "0-1"]
[Annotator "TA"]
[ECO "E11"]
[WhiteElo "2364"]
[BlackElo "2561"]
[PlyCount "66"]
[EventDate "2025.04.15"]
[EventType "swiss"]
[EventCountry "ESP"]
[SourceTitle "playchess.com"]
[Source "ChessBase"]
[SourceQuality "1"]
[TimeControl "5400+30"]

{[%evp 16,66,13,2,16,6,28,10,11,-30,-25,-18,-18,-56,-56,-139,-106,-117,-72,-69,-87,-104,-114,-166,-165,-167,-160,-342,-260,-253,-143,-367,-335,-379,-414,-408,-414,-508,-525,-516,-541,-522,-502,-612,-595,-629,-614,-604,-581,-606,-488,-651,-595]} 1. d4 {[%emt 0:00:33]} Nf6 {[%emt 0:00:06]} 2. c4 {[%emt 0:00:06]} e6 {[%emt 0:00:04]} 3. Nf3 {[%emt 0:00:10]} d5 {[%emt 0:00:04]} 4. g3 {[%emt 0:00:10]} Bb4+ {[%emt 0:00:04]} 5. Bd2 {[%emt 0:00:11]} Be7 {[%emt 0:00:04]} 6. Bg2 {[%emt 0:00:16]} O-O {[%emt 0:00:06]} 7. O-O {[%emt 0:00:23]} c6 {[%emt 0:00:10]} 8. Qc2 {[%emt 0:00:39]} Nbd7 {[%emt 0:00:31]} 9. Bf4 {[%emt 0:00:47]} h6 {[%emt 0:00:22] E11: Bogo-Indian.} 10. Rd1 {[%emt 0:00:20]} a5 {[%emt 0:00:04]} 11. Nc3 {[%emt 0:00:45]} dxc4 {[%emt 0:00:05] The position is equal.} 12. Ne5 {[%emt 0:04:17]} Nxe5 $1 {[%emt 0:06:48]} 13. dxe5 {[%emt 0:17:41]} Nd5 {[%emt 0:02:10][%cal Oa5a4]} 14. Qe4 $146 {[%emt 0:02:05]} (14. Ne4 b5 15. b3 Ba6 16. bxc4 bxc4 17. Nd6 Bxd6 18. exd6 Qf6 19. Bd2 c3 20. Be1 {0-1 Smirnov,P (2538)-Tabatabaei,M (2689) Julius Baer Play In rapid 2023 (3.3)}) 14... b5 {[%emt 0:14:18]} 15. Bxh6 {[%emt 0:05:18]} gxh6 $17 {[%emt 0:09:26]} 16. Qg4+ {[%emt 0:00:11]} Bg5 {[%emt 0:02:10] [#]} 17. h4 {[%emt 0:03:15]} f5 {[%emt 0:01:14]} 18. exf6 {[%emt 0:02:03]} Qxf6 {[%emt 0:01:23]} 19. f4 {[%emt 0:00:04] [#]} (19. Rf1 $17 {was called for.}) 19... Ne3 $1 $19 {[%emt 0:07:56]} (19... Nxc3 20. bxc3 Qxc3 21. fxg5 Qe3+ 22. Kh2 hxg5 23. Bxc6 $15) 20. hxg5 {[%emt 0:04:21]} hxg5 {[%emt 0:00:03]} (20... Nxg4 21. gxf6 b4 22. Na4 $16 (22. Bxc6 $2 Ra6 $19)) 21. Qf3 {[%emt 0:02:14]} (21. Qxg5+ $17 Qxg5 22. fxg5 Nxd1 23. Rxd1) 21... Nxd1 {[%emt 0:02:56]} 22. Rxd1 {[%emt 0:01:44]} Ra7 {[%emt 0:06:54]} (22... gxf4 $19 {Threatens to win with ...Ra7.} 23. Nxb5 Qxb2) 23. Ne4 $2 {[%emt 0:00:22] This move loses the game for White.} (23. Qe3 $17 {is the only way for White.} Rg7 (23... gxf4 $2 24. Qxa7 fxg3 25. Rf1 $18) 24. Ne4 Qxb2 25. fxg5) 23... Qxb2 {[%emt 0:00:18]} 24. Nxg5 {[%emt 0:00:24]} c3 {[%emt 0:05:15]} (24... Qxa2 25. Qh5 Qb2 26. Nxe6 Bxe6 27. Qg6+ Qg7 28. Qxe6+ Kh8 29. Rd6 $17) 25. Qe3 {[%emt 0:02:39]} c2 {[%emt 0:01:10]} 26. Rc1 {[%emt 0:00:52]} Rd7 {[%emt 0:05:51] Black is clearly winning.} 27. Kf2 {[%emt 0:04:06]} Rd1 {[%emt 0:02:07]} ({Weaker is} 27... Qxa2 28. Be4 $17) 28. Qe4 {[%emt 0:00:07]} Qg7 {[%emt 0:04:26] Wards off Qh7+} ({Not} 28... Qxc1 29. Qh7#) 29. Rxc2 {[%emt 0:03:25]} Qxg5 {[%emt 0:00:05]} 30. Rxc6 {[%emt 0:00:11]} Qf5 {[%emt 0:01:40]} 31. Qe3 {[%emt 0:00:13]} Qf6 {[%emt 0:03:06]} 32. Bh3 {[%emt 0:00:06][%cal Oc6c8]} Bd7 {[%emt 0:01:47]} 33. Rc5 {[%emt 0:04:37]} Qd4 {[%emt 0:00:12] Weighted Error Value: White=0.49/Black=0.18 (very precise)   Loses game:     	White=2     	---        Mistake:       	White=2     	Black=1      Inaccurate:     	White=3     	Black=1      OK:         	White=3     	Black=8      Best:        	White=4     	Black=4      Strong:       	---       	Black=1} 0-1

[Event "51st La Roda Open 2025"]
[Site "La Roda"]
[Date "2025.04.17"]
[Round "4.3"]
[White "Fier, Alexandr"]
[Black "Centron Antuna, Daniel"]
[Result "1-0"]
[Annotator "RC"]
[ECO "C18"]
[WhiteElo "2534"]
[BlackElo "2299"]
[PlyCount "51"]
[EventDate "2025.04.15"]
[EventType "swiss"]
[EventCountry "ESP"]
[SourceTitle "playchess.com"]
[Source "ChessBase"]
[SourceQuality "1"]
[TimeControl "5400+30"]

1. e4 {[%emt 0:00:03]} e6 {[%emt 0:00:06]} 2. d4 {[%emt 0:00:04]} d5 {[%emt 0:00:06]} 3. Nc3 {[%emt 0:00:03]} Bb4 {[%emt 0:00:09]} 4. e5 {[%emt 0:00:04]} c5 {[%emt 0:00:07]} 5. a3 {[%emt 0:00:03]} Bxc3+ {[%emt 0:00:05]} 6. bxc3 {[%emt 0:00:03]} Ne7 {[%emt 0:00:14]} 7. Qg4 {[%emt 0:00:05]} Qc7 {[%emt 0:00:11]} 8. Bd3 {[%emt 0:00:19]} cxd4 {[%emt 0:05:23]} 9. Ne2 {[%emt 0:01:14]} dxc3 {[%emt 0:09:25]} 10. Qxg7 {[%emt 0:00:06]} Rg8 {[%emt 0:00:08]} 11. Qxh7 {[%emt 0:00:03]} Qxe5 {[%emt 0:01:21]} 12. Bf4 {[%emt 0:00:06]} Qf6 {[%emt 0:00:28]} 13. h4 {[%emt 0:00:05]} Rxg2 {[%emt 0:10:16]} 14. Kf1 {[%emt 0:05:05]} e5 {[%emt 0:10:03]} 15. Kxg2 {[%emt 0:06:37]} exf4 {[%emt 0:00:08]} 16. Kf1 {[%emt 0:00:46]} Bg4 {[%emt 0:01:12]} 17. h5 {[%emt 0:02:35]} Nd7 {[%emt 0:15:03]} 18. h6 {[%emt 0:00:56]} O-O-O {[%emt 0:06:25]} 19. Qg7 {[%emt 0:00:04]} Bxe2+ {[%emt 0:01:38]} 20. Kxe2 {[%emt 0:01:01]} Qe6+ {[%emt 0:10:19]} 21. Kf1 {[%emt 0:00:32]} Qf6 {[%emt 0:07:37]} 22. Re1 {[%emt 0:01:24]} Ng6 {[%emt 0:01:07]} 23. Qxf6 {[%emt 0:02:23]} Nxf6 {[%emt 0:00:03]} 24. Bxg6 {[%emt 0:04:08]} fxg6 {[%emt 0:00:04]} 25. h7 {[%emt 0:00:06]} Rh8 {[%emt 0:00:13]} 26. Re7 {[%emt 0:00:09]} 1-0

[Event "51st La Roda Open 2025"]
[Site "La Roda"]
[Date "2025.04.17"]
[Round "4.4"]
[White "Gonzalez Castillo, Jose Javier"]
[Black "Suleymenov, Alisher"]
[Result "1/2-1/2"]
[Annotator "RC"]
[ECO "B50"]
[WhiteElo "2297"]
[BlackElo "2478"]
[PlyCount "70"]
[EventDate "2025.04.15"]
[EventType "swiss"]
[EventCountry "ESP"]
[SourceTitle "playchess.com"]
[Source "ChessBase"]
[SourceQuality "1"]
[TimeControl "5400+30"]

1. e4 {[%emt 0:02:39]} c5 {[%emt 0:00:05]} 2. Nf3 {[%emt 0:00:05]} d6 {[%emt 0:01:42]} 3. Nc3 {[%emt 0:00:09]} Nf6 {[%emt 0:00:49]} 4. e5 {[%emt 0:00:05]} dxe5 {[%emt 0:00:04]} 5. Nxe5 {[%emt 0:00:05]} a6 {[%emt 0:00:06]} 6. g3 {[%emt 0:00:20]} Qd6 {[%emt 0:00:12]} 7. Qe2 {[%emt 0:01:43]} Nc6 {[%emt 0:00:06]} 8. Nxc6 {[%emt 0:03:04]} Qxc6 {[%emt 0:00:06]} 9. Rg1 {[%emt 0:00:03]} Bg4 {[%emt 0:00:07]} 10. Bg2 {[%emt 0:00:27]} Qxg2 {[%emt 0:00:07]} 11. Rxg2 {[%emt 0:00:07]} Bxe2 {[%emt 0:00:04]} 12. Kxe2 {[%emt 0:00:57]} b5 {[%emt 0:05:17]} 13. d3 {[%emt 0:00:36]} g6 {[%emt 0:03:04]} 14. a4 {[%emt 0:16:46]} b4 {[%emt 0:00:19]} 15. Ne4 {[%emt 0:01:31]} Nxe4 {[%emt 0:00:34]} 16. dxe4 {[%emt 0:00:02]} Bg7 {[%emt 0:00:35]} 17. Rb1 {[%emt 0:00:36]} c4 {[%emt 0:13:46]} 18. Be3 {[%emt 0:08:26]} Kd7 {[%emt 0:00:49]} 19. Rgg1 {[%emt 0:01:10]} Kc6 {[%emt 0:01:35]} 20. b3 {[%emt 0:03:00]} Rhd8 {[%emt 0:19:05]} 21. Rgd1 {[%emt 0:01:28]} e6 {[%emt 0:04:50]} 22. Rxd8 {[%emt 0:12:28]} Rxd8 {[%emt 0:00:24]} 23. Rd1 {[%emt 0:00:14]} Rc8 {[%emt 0:02:09]} 24. bxc4 {[%emt 0:06:41]} Bf8 {[%emt 0:02:58]} 25. f3 {[%emt 0:11:48]} Bd6 {[%emt 0:05:48]} 26. Bd4 {[%emt 0:03:49]} Be7 {[%emt 0:04:31]} 27. Be3 {[%emt 0:00:26]} h5 {[%emt 0:00:19]} 28. h3 {[%emt 0:05:40]} Bd6 {[%emt 0:06:28]} 29. f4 {[%emt 0:01:51]} f5 {[%emt 0:04:38]} 30. e5 {[%emt 0:01:51]} Be7 {[%emt 0:01:18]} 31. h4 {[%emt 0:04:05]} Rc7 {[%emt 0:02:33]} 32. a5 {[%emt 0:03:58]} Rd7 {[%emt 0:06:58]} 33. Rxd7 {[%emt 0:02:45]} Kxd7 {[%emt 0:00:05]} 34. Bb6 {[%emt 0:00:36]} Kc6 {[%emt 0:00:06]} 35. Kd2 {[%emt 0:00:34]} Bf8 {[%emt 0:00:24]} 1/2-1/2